fUST/lending_fUST_20240122
["ID","MTS","AMOUNT","RATE_DAILY","PERIOD"]
[312435998,1705873840879,-500.0,0.00027671,2]
[312435999,1705873840888,-500.0,0.00027671,2]
[312436000,1705873840897,-500.0,0.00027671,2]
[312436001,1705873840906,-634.79,0.00027671,2]
[312436002,1705873840915,-500.0,0.00027671,2]
[312436003,1705873840924,-500.0,0.00027671,2]
[312436004,1705873840933,-500.0,0.00027671,2]
[312436005,1705873840942,-691.68,0.00027671,2]
[312436006,1705873840952,-500.0,0.00027671,2]
[312436007,1705873840961,-500.0,0.00027671,2]
[312436008,1705873840970,-500.0,0.00027671,2]
[312436009,1705873840979,-500.0,0.00027671,2]
[312436010,1705873840988,-500.0,0.00027671,2]
[312436011,1705873840997,-500.0,0.00027671,2]
[312436012,1705873841006,-500.0,0.00027671,2]
[312436013,1705873841015,-500.0,0.00027671,2]
[312436014,1705873841024,-631.88,0.00027671,2]
[312436015,1705873841034,-500.0,0.00027671,2]
[312436016,1705873841042,-500.0,0.00027671,2]
[312436017,1705873841051,-1000.0,0.00027671,2]
[312436018,1705873841061,-500.0,0.00027671,2]
[312436019,1705873841070,-500.0,0.00027671,2]
[312436020,1705873841078,-500.0,0.00027671,2]
[312436021,1705873841087,-500.0,0.00027671,2]
[312436022,1705873841096,-716.3,0.00027671,2]
[312436023,1705873841105,-500.0,0.00027671,2]
[312436024,1705873841114,-500.0,0.00027671,2]
[312436025,1705873841123,-500.0,0.00027671,2]
[312436026,1705873841132,-500.0,0.00027671,2]
[312436027,1705873841142,-453.82432863,0.00027671,2]
[312436028,1705873841152,-1418.15,0.00027671,2]
[312436029,1705873841161,-500.0,0.00027671,2]
[312436030,1705873841170,-500.0,0.00027671,2]
[312436031,1705873841179,-500.0,0.00027671,2]
[312436032,1705873841188,-500.0,0.00027671,2]
[312436033,1705873841198,-500.0,0.00027671,2]
[312436034,1705873841207,-500.0,0.00027671,2]
[312436035,1705873841215,-500.0,0.00027671,2]
[312436036,1705873841225,-500.0723576,0.00027671,2]
[312436037,1705873841235,-500.0,0.00027671,2]
[312436038,1705873841245,-500.0,0.00027671,2]
[312436039,1705873841255,-500.0,0.00027671,2]
[312436040,1705873841263,-500.0,0.00027671,2]
[312436041,1705873841272,-500.0,0.00027671,2]
[312436042,1705873841281,-500.0,0.00027671,2]
[312436043,1705873841290,-500.0,0.00027671,2]
[312436044,1705873841299,-500.0,0.00027671,2]
[312436045,1705873841308,-500.0,0.00027671,2]
[312436046,1705873841317,-1000.0,0.00027671,2]
[312436047,1705873841326,-500.0,0.00027671,2]
[312436048,1705873841335,-596.3317369,0.00027671,2]
[312436049,1705873841344,-500.0,0.00027671,2]
[312436050,1705873841353,-500.0,0.00027671,2]
[312436051,1705873841362,-500.0,0.00027671,2]
[312436052,1705873841372,-186.61271067,0.00027671,2]
[312436053,1705873841381,-500.0,0.00027671,2]
[312436054,1705873841390,-388.68371797,0.00027671,2]
[312436055,1705873841399,-500.0,0.00027671,2]
[312436056,1705873841409,-500.0,0.00027671,2]
[312436057,1705873841418,-346.71546179,0.00027671,2]
[312436058,1705873841427,-500.0,0.00027671,2]
[312436059,1705873841436,-500.0,0.00027671,2]
[312436060,1705873841445,-1119.28,0.00027671,2]
[312436061,1705873841454,-500.0,0.00027671,2]
[312436062,1705873841463,-500.0,0.00027671,2]
[312436063,1705873841472,-533.83,0.00027671,2]
[312436064,1705873841482,-500.0,0.00027671,2]
[312436065,1705873841491,-1273.29555953,0.00027671,2]
[312436066,1705873841500,-500.0,0.00027671,2]
[312436067,1705873841510,-500.0,0.00027671,2]
[312436068,1705873841519,-500.0,0.00027671,2]
[312436069,1705873841528,-644.27,0.00027671,2]
[312436070,1705873841537,-500.0,0.00027671,2]
[312436071,1705873841547,-500.0,0.00027671,2]
[312436072,1705873841556,-497.46272166,0.00027671,2]
[312436073,1705873841565,-645.0704985,0.00027671,2]
[312436074,1705873841574,-896.24,0.00027671,2]
[312436075,1705873841583,-500.0,0.00027671,2]
[312436076,1705873841592,-155.57285885,0.00027671,2]
[312436077,1705873841601,-500.0,0.00027671,2]
[312436078,1705873841611,-226.02277803,0.00027671,2]
[312436079,1705873841620,-500.0,0.00027671,2]
[312436080,1705873841629,-1641.0,0.00027671,2]
[312436081,1705873841638,-500.0,0.00027671,2]
[312436082,1705873841648,-500.0,0.00027671,2]
[312436083,1705873841657,-500.0,0.00027671,2]
[312436084,1705873841666,-500.0,0.00027671,2]
[312436085,1705873841675,-571.22,0.00027671,2]
[312436086,1705873841685,-500.0,0.00027671,2]
[312436087,1705873841694,-500.0,0.00027671,2]
[312436088,1705873841704,-500.0,0.00027671,2]
[312436089,1705873841713,-545.57,0.00027671,2]
[312436090,1705873841722,-500.0,0.00027671,2]
[312436091,1705873841735,-500.0,0.00027671,2]
[312436092,1705873841750,-500.0,0.00027671,2]
[312436093,1705873841763,-807.75,0.00027671,2]
[312436094,1705873841775,-3722.03,0.00027671,2]
[312436095,1705873841787,-500.0,0.00027671,2]
[312436096,1705873841798,-500.0,0.00027671,2]
[312436097,1705873841808,-706.76,0.00027671,2]
[312436098,1705873841821,-1339.19,0.00027671,2]
[312436099,1705873841832,-7805.04396393,0.00027671,2]
[312436100,1705873841854,-7934.05603607,0.00027671,2]
[312436101,1705873841866,-500.0,0.00027671,2]
[312436102,1705873841878,-1453.39,0.00027671,2]
[312436103,1705873841890,-500.0,0.00027671,2]
[312436104,1705873841901,-500.0,0.00027671,2]
[312436105,1705873841913,-500.0,0.00027671,2]
[312436106,1705873841923,-500.0,0.00027671,2]
[312436107,1705873841933,-500.0,0.00027671,2]
[312436108,1705873841945,-500.0,0.00027671,2]
[312436109,1705873841956,-500.0,0.00027671,2]
[312436110,1705873841968,-500.0,0.00027671,2]
[312436111,1705873841979,-700.45,0.00027671,2]
[312436112,1705873841989,-1033.96,0.00027671,2]
[312436113,1705873842000,-500.0,0.00027671,2]
[312436114,1705873842012,-579.56324903,0.00027671,2]
[312436115,1705873842024,-10696.13,0.00027671,2]
[312436116,1705873842036,-780.46,0.00027671,2]
[312436117,1705873842046,-824.87,0.00027671,2]
[312436118,1705873842056,-500.0,0.00027671,2]
[312436119,1705873842069,-500.0,0.00027671,2]
[312436120,1705873842082,-500.0,0.00027671,2]
[312436121,1705873842094,-500.0,0.00027671,2]
[312436122,1705873842106,-500.0,0.00027671,2]
[312436123,1705873842119,-1004.45,0.00027671,2]
[312436124,1705873842130,-801.19,0.00027671,2]
[312436125,1705873842141,-5940.14,0.00027671,2]
[312436126,1705873842155,-903.08,0.00027671,2]
[312436127,1705873842166,-500.0,0.00027671,2]
[312436128,1705873842178,-7067.33,0.00027671,2]
[312436129,1705873842190,-500.0,0.00027671,2]
[312436130,1705873842203,-1381.1,0.00027671,2]
[312436131,1705873842215,-1991.97,0.00027671,2]
[312436132,1705873842228,-4090.78,0.00027671,2]
[312436133,1705873842240,-251.91583428,0.00027671,2]
[312436134,1705873842252,-1507.42,0.00027671,2]
[312436136,1705873842263,-500.0,0.00027671,2]
[312436138,1705873842274,-5257.8,0.00027671,2]
[312436140,1705873842283,-500.0,0.00027671,2]
[312436142,1705873842293,-500.0,0.00027671,2]
[312436143,1705873842303,-500.0,0.00027671,2]
[312436145,1705873842315,-2281.21,0.00027671,2]
[312436147,1705873842327,-1209.94,0.00027671,2]
[312436149,1705873842338,-500.0,0.00027671,2]
[312436150,1705873842349,-500.0,0.00027671,2]
[312436151,1705873842359,-1861.85,0.00027671,2]
[312436153,1705873842371,-500.0,0.00027671,2]
[312436155,1705873842382,-500.0,0.00027671,2]
[312436157,1705873842392,-500.0,0.00027671,2]
[312436160,1705873842402,-500.0,0.00027671,2]
[312436162,1705873842412,-340.35921099,0.00027671,2]
[312436164,1705873842422,-500.0,0.00027671,2]
[312436165,1705873842432,-500.0,0.00027671,2]
[312436168,1705873842442,-802.14,0.00027671,2]
[312436169,1705873842453,-500.0,0.00027671,2]
[312436170,1705873842464,-234.05683702,0.00027671,2]
[312436171,1705873842474,-500.0,0.00027671,2]
[312436172,1705873842484,-9118.80664487,0.0002775,4]
[312436174,1705873842495,-163.0,0.00027814,2]
[312436176,1705873842505,-150.0,0.00027814,2]
[312436177,1705873842515,-150.0,0.00027814,2]
[312436178,1705873842525,-387.045877,0.00027814,2]
[312436179,1705873842536,-387.045877,0.00027814,2]
[312436180,1705873842546,-151.0,0.00027814,2]
[312436181,1705873842557,-8317.66330323,0.00027814,4]
[312436182,1705873842567,-3396.52592789,0.00027815,3]
[312436183,1705873842577,-10000.0,0.00027815,2]
[312436184,1705873842588,-10000.0,0.00027815,2]
[312436185,1705873842599,-10000.0,0.00027815,2]
[312436186,1705873842609,-10000.0,0.00027815,2]
[312436187,1705873842619,-10000.0,0.00027815,2]
[312436188,1705873842629,-10000.0,0.00027815,2]
[312436189,1705873842639,-10000.0,0.00027815,2]
[312436190,1705873842650,-387.045877,0.00027815,2]
[312436191,1705873842660,-387.045877,0.00027815,2]
[312436192,1705873842670,-151.0,0.00027815,2]
[312436193,1705873842680,-151.0,0.00027816,2]
[312436194,1705873842690,-5000.0,0.00027816,5]
[312436195,1705873842701,-10944.25259915,0.00027816,3]
[312436196,1705873842711,-5000.0,0.00027816,5]
[312436197,1705873842721,-5000.0,0.00027816,5]
[312436198,1705873842731,-1889.577786,0.00027817,3]
[312436199,1705873842741,-151.0,0.00027845,2]
[312436200,1705873842752,-151.0,0.00027845,2]
[312436202,1705873842762,-1045.65136347,0.00027869,2]
[312436203,1705873842772,-151.0,0.00027897,2]
[312436204,1705873842783,-151.0,0.00027897,2]
[312436205,1705873842793,-151.0,0.00027897,2]
[312436206,1705873842804,-10000.0,0.00027897,2]
[312436207,1705873842814,-10000.0,0.00027897,2]
[312436208,1705873842824,-10000.0,0.00027897,2]
[312436209,1705873842834,-10000.0,0.00027897,2]
[312436210,1705873842844,-10000.0,0.00027897,2]
[312436211,1705873842854,-10000.0,0.00027897,2]
[312436212,1705873842864,-10000.0,0.00027897,2]
[312436213,1705873842874,-387.045877,0.00027897,2]
[312436214,1705873842884,-387.045877,0.00027897,2]
[312436215,1705873842895,-151.0,0.00027897,2]
[312436216,1705873842905,-496.83097243,0.00027897,2]
[312436217,1705873842916,-154.87609912,0.00027897,2]
[312436218,1705873842927,-2583.15156299,0.00027897,2]
[312436219,1705873842937,-154.90705277,0.00027897,2]
[312436220,1705873842946,-199.14321435,0.00027897,2]
[312436221,1705873842955,-294.32751889,0.00027897,2]
[312436222,1705873842964,-589.21908338,0.00027897,2]
[312436223,1705873842974,-784.93302602,0.00027897,2]
[312436224,1705873842983,-242.99577859,0.00027898,2]
[312436225,1705873842993,-10000.0,0.00027899,2]
[312436226,1705873843003,-10000.0,0.00027899,2]
[312436227,1705873843013,-10000.0,0.00027899,2]
[312436228,1705873843022,-10000.0,0.00027899,2]
[312436229,1705873843031,-10000.0,0.00027899,2]
[312436230,1705873843040,-10000.0,0.00027899,2]
[312436231,1705873843050,-10000.0,0.00027899,2]
[312436232,1705873843059,-387.045877,0.00027899,2]
[312436233,1705873843069,-387.045877,0.00027899,2]
[312436234,1705873843078,-387.045877,0.00027899,2]
[312436235,1705873843087,-387.045877,0.00027899,2]
[312436236,1705873843234,-152.509172,0.00027899,2]
[312436237,1705873843248,-157.00534971,0.00027899,2]
[312436238,1705873843257,-500.0,0.00027899,2]
[312436239,1705873843266,-500.0,0.00027899,2]
[312436240,1705873843275,-500.0,0.00027899,2]
[312436241,1705873843283,-500.0,0.00027899,2]
[312436242,1705873843292,-158.69005598,0.00027899,2]
[312436243,1705873843301,-500.0,0.00027899,2]
[312436244,1705873843310,-500.0,0.00027899,2]
[312436245,1705873843319,-500.0,0.00027899,2]
[312436246,1705873843328,-500.0,0.00027899,2]
[312436247,1705873843337,-544.3435803,0.00027899,2]
[312436248,1705873843346,-425.2200162,0.00027899,2]
[312436249,1705873843354,-500.0,0.00027899,2]
[312436250,1705873843363,-500.0,0.00027899,2]
[312436251,1705873843372,-500.0,0.00027899,2]
[312436252,1705873843381,-500.0,0.00027899,2]
[312436253,1705873843391,-476.10451219,0.00027899,2]
[312436254,1705873843400,-500.0,0.00027899,2]
[312436255,1705873843409,-500.0,0.00027899,2]
[312436256,1705873843418,-500.0,0.00027899,2]
[312436257,1705873843427,-517.25308143,0.00027899,2]
[312436258,1705873843436,-500.0,0.00027899,2]
[312436259,1705873843445,-500.0,0.00027899,2]
[312436260,1705873843454,-500.0,0.00027899,2]
[312436261,1705873843463,-248.22767378,0.00027899,2]
[312436262,1705873843472,-500.0,0.00027899,2]
[312436263,1705873843481,-500.0,0.00027899,2]
[312436264,1705873843490,-500.0,0.00027899,2]
[312436265,1705873843499,-500.0,0.00027899,2]
[312436266,1705873843510,-500.0,0.00027899,2]
[312436267,1705873843519,-500.0,0.00027899,2]
[312436268,1705873843529,-500.0,0.00027899,2]
[312436269,1705873843538,-603.08186647,0.00027899,2]
[312436270,1705873843547,-500.0,0.00027899,2]
[312436271,1705873843557,-500.0,0.00027899,2]
[312436272,1705873843566,-500.0,0.00027899,2]
[312436273,1705873843575,-500.0,0.00027899,2]
[312436274,1705873843584,-500.0,0.00027899,2]
[312436275,1705873843593,-500.0,0.00027899,2]
[312436276,1705873843602,-500.0,0.00027899,2]
[312436277,1705873843611,-500.0,0.00027899,2]
[312436278,1705873843620,-500.0,0.00027899,2]
[312436279,1705873843628,-500.0,0.00027899,2]
[312436280,1705873843637,-500.0,0.00027899,2]
[312436281,1705873843647,-500.0,0.00027899,2]
[312436282,1705873843656,-500.0,0.00027899,2]
[312436283,1705873843665,-500.0,0.00027899,2]
[312436284,1705873843675,-500.0,0.00027899,2]
[312436285,1705873843683,-559.46977516,0.00027899,2]
[312436286,1705873843692,-500.0,0.00027899,2]
[312436287,1705873843701,-235.38791098,0.00027899,2]
[312436288,1705873843711,-500.0,0.00027899,2]
[312436289,1705873843720,-500.0,0.00027899,2]
[312436290,1705873843729,-303.20887553,0.00027899,2]
[312436291,1705873843738,-500.0,0.00027899,2]
[312436292,1705873843747,-500.0,0.00027899,2]
[312436293,1705873843756,-500.0,0.00027899,2]
[312436294,1705873843765,-500.0,0.00027899,2]
[312436295,1705873843774,-500.0,0.00027899,2]
[312436296,1705873843783,-500.0,0.00027899,2]
[312436297,1705873843792,-500.0,0.00027899,4]
[312436298,1705873843801,-500.0,0.00027899,4]
[312436299,1705873843811,-500.0,0.00027899,4]
[312436300,1705873843821,-388.60722128,0.00027899,4]
[312436301,1705873843832,-463.05002002,0.00027899,4]
[312436302,1705873843842,-500.0,0.00027899,4]
[312436303,1705873843853,-500.0,0.00027899,4]
[312436304,1705873843864,-296.31669131,0.00027899,4]
[312436305,1705873843874,-500.0,0.00027899,4]
[312436306,1705873843883,-500.0,0.00027899,4]
[312436307,1705873843892,-553.28211294,0.00027899,4]
[312436308,1705873843901,-500.0,0.00027899,4]
[312436309,1705873843910,-500.0,0.00027899,4]
[312436310,1705873843920,-243.12303791,0.00027899,4]
[312436311,1705873843929,-500.0,0.00027899,4]
[312436312,1705873843938,-500.0,0.00027899,4]
[312436313,1705873843947,-500.0,0.00027899,4]
[312436314,1705873843956,-500.0,0.00027899,4]
[312436315,1705873843965,-351.07343649,0.00027899,4]
[312436316,1705873843974,-48695.01783375,0.000279,2]
[312436317,1705873843988,-566.0367723,0.000279,2]
[312436324,1705874206328,5648.67960104,0.000195,2]
[312436327,1705874498134,200.0,0.00021449,7]
[312436328,1705874798677,200.0,0.00021449,7]
[312436370,1705875033422,-154.75239617,0.00019499,3]
[312436371,1705875033432,-1547.21384995,0.000195,2]
[312436424,1705875038206,-2804.10654901,0.000195,2]
[312436426,1705875038215,-1114.30379801,0.000195,2]
[312436428,1705875038224,-4040.70896972,0.00021449,2]
[312436430,1705875038233,-2621.04345623,0.00021449,2]
[312436433,1705875038243,-300.0,0.00021449,2]
[312436435,1705875038252,-1273.29555953,0.00021449,2]
[312436437,1705875038261,-187.29041613,0.00021449,2]
[312436440,1705875038271,-280.0,0.00023594,7]
[312436443,1705875038280,-3719.0213628,0.00024901,2]
[312436445,1705875038289,-5287.8170074,0.00024943,2]
[312436447,1705875038299,-152.92806292,0.00025,2]
[312436449,1705875038307,-7379.86363499,0.00025,2]
[312436451,1705875038316,-650.35918282,0.00025103,2]
[312436453,1705875038325,-444.133984,0.00025128,2]
[312436455,1705875038334,-641.31195098,0.00025799,2]
[312436457,1705875038343,-391.0,0.00025953,7]
[312436459,1705875038353,-167.197675,0.00026281,2]
[312436461,1705875038362,-1045.65136347,0.00027368,2]
[312436463,1705875038371,-3281.8,0.00027387,3]
[312436465,1705875038380,-2734.83,0.00027387,3]
[312436467,1705875038389,-850.12372754,0.00027395,2]
[312436469,1705875038398,-323.06508436,0.00027395,2]
[312436471,1705875038407,-589.21908338,0.00027395,2]
[312436473,1705875038416,-154.90705277,0.00027395,2]
[312436475,1705875038425,-154.87609912,0.00027395,2]
[312436477,1705875038434,-242.99577859,0.00027395,2]
[312436479,1705875038443,-496.83097243,0.00027395,2]
[312436480,1705875038452,-784.93302602,0.00027395,2]
[312436482,1705875038461,-294.32751889,0.00027395,2]
[312436484,1705875038470,-199.14321435,0.00027395,2]
[312436485,1705875038479,-2583.15156299,0.00027395,2]
[312436486,1705875038488,-177.90237609,0.00027395,2]
[312436487,1705875038498,-1201.59517123,0.00027395,2]
[312436488,1705875038509,-678.4765603,0.00027395,2]
[312436489,1705875038519,-160.64828034,0.00027395,2]
[312436490,1705875038528,-3052.11785591,0.00027396,2]
[312436491,1705875038539,-500.0,0.00027397,2]
[312436492,1705875038548,-500.0,0.00027397,2]
[312436493,1705875038558,-500.0,0.00027397,2]
[312436494,1705875038568,-500.0,0.00027397,2]
[312436495,1705875038577,-500.0,0.00027397,2]
[312436496,1705875038589,-565.75700935,0.00027397,2]
[312436497,1705875038599,-500.0,0.00027397,2]
[312436498,1705875038608,-500.0,0.00027397,2]
[312436499,1705875038618,-151.53580206,0.00027397,2]
[312436500,1705875038627,-500.0,0.00027397,2]
[312436501,1705875038637,-662.86,0.00027397,2]
[312436502,1705875038647,-500.0,0.00027397,2]
[312436503,1705875038658,-500.0,0.00027397,2]
[312436504,1705875038668,-472.61612095,0.00027397,2]
[312436505,1705875038678,-500.0,0.00027397,2]
[312436506,1705875038688,-500.0,0.00027397,2]
[312436507,1705875038698,-500.0,0.00027397,2]
[312436508,1705875038707,-500.0,0.00027397,2]
[312436509,1705875038717,-500.0,0.00027397,2]
[312436510,1705875038726,-500.0,0.00027397,2]
[312436511,1705875038735,-156.32295758,0.00027397,2]
[312436512,1705875038744,-500.0,0.00027397,2]
[312436513,1705875038754,-605.55,0.00027397,2]
[312436514,1705875038769,-500.0,0.00027397,2]
[312436515,1705875038778,-150.10003198,0.00027397,2]
[312436516,1705875038787,-425.81095081,0.00027397,2]
[312436517,1705875038797,-500.0,0.00027397,2]
[312436518,1705875038808,-500.0,0.00027397,2]
[312436519,1705875038817,-500.0,0.00027397,2]
[312436520,1705875038827,-500.0,0.00027397,2]
[312436521,1705875038837,-437.94230908,0.00027397,2]
[312436522,1705875038846,-686.45,0.00027397,2]
[312436523,1705875038855,-500.0,0.00027397,2]
[312436524,1705875038865,-500.0,0.00027397,2]
[312436525,1705875038874,-502.39572461,0.00027397,2]
[312436526,1705875038885,-368.94436176,0.00027397,2]
[312436527,1705875038894,-500.0,0.00027397,2]
[312436528,1705875038903,-500.0,0.00027397,2]
[312436529,1705875038912,-500.0,0.00027397,2]
[312436530,1705875038921,-500.0,0.00027397,2]
[312436531,1705875038931,-500.0,0.00027397,2]
[312436532,1705875038940,-561.16798404,0.00027397,2]
[312436533,1705875038950,-500.0,0.00027397,2]
[312436534,1705875038959,-500.0,0.00027397,2]
[312436535,1705875038968,-1035.93563138,0.00027397,2]
[312436536,1705875038977,-500.0,0.00027397,2]
[312436537,1705875038987,-470.11053392,0.00027397,2]
[312436538,1705875038996,-500.0,0.00027397,2]
[312436539,1705875039007,-500.0,0.00027397,2]
[312436540,1705875039016,-500.0,0.00027397,2]
[312436541,1705875039025,-500.0,0.00027397,2]
[312436542,1705875039034,-500.0,0.00027397,2]
[312436543,1705875039044,-200.0,0.00027397,2]
[312436544,1705875039053,-500.0,0.00027397,2]
[312436545,1705875039062,-500.0,0.00027397,2]
[312436546,1705875039072,-500.0,0.00027397,2]
[312436547,1705875039081,-500.0,0.00027397,2]
[312436548,1705875039090,-500.0,0.00027397,2]
[312436549,1705875039099,-500.0,0.00027397,2]
[312436550,1705875039109,-500.0,0.00027397,2]
[312436551,1705875039118,-500.0,0.00027397,2]
[312436552,1705875039127,-500.0,0.00027397,2]
[312436553,1705875039136,-500.0,0.00027397,2]
[312436554,1705875039145,-151.44619477,0.00027397,2]
[312436555,1705875039155,-500.0,0.00027397,2]
[312436556,1705875039164,-500.0,0.00027397,2]
[312436557,1705875039173,-500.0,0.00027397,2]
[312436558,1705875039182,-635.3,0.00027397,2]
[312436559,1705875039191,-500.0,0.00027397,2]
[312436560,1705875039200,-500.0,0.00027397,2]
[312436561,1705875039209,-500.0,0.00027397,2]
[312436562,1705875039218,-500.0,0.00027397,2]
[312436563,1705875039227,-500.0,0.00027397,2]
[312436564,1705875039236,-500.0,0.00027397,2]
[312436565,1705875039245,-500.0,0.00027397,2]
[312436566,1705875039254,-500.0,0.00027397,2]
[312436567,1705875039263,-500.0,0.00027397,2]
[312436568,1705875039273,-500.0,0.00027397,2]
[312436569,1705875039282,-500.0,0.00027397,2]
[312436570,1705875039291,-502.39253429,0.00027397,2]
[312436571,1705875039300,-500.0,0.00027397,2]
[312436572,1705875039309,-590.58,0.00027397,2]
[312436573,1705875039318,-500.0,0.00027397,2]
[312436574,1705875039327,-500.0,0.00027397,2]
[312436575,1705875039337,-503.89430269,0.00027397,2]
[312436576,1705875039347,-500.0,0.00027397,2]
[312436577,1705875039355,-500.0,0.00027397,2]
[312436578,1705875039365,-635.96694651,0.00027397,2]
[312436579,1705875039376,-500.0,0.00027397,2]
[312436580,1705875039385,-500.0,0.00027397,2]
[312436581,1705875039395,-500.0,0.00027397,2]
[312436582,1705875039405,-500.0,0.00027397,2]
[312436583,1705875039414,-500.90581918,0.00027397,2]
[312436584,1705875039424,-459.32992208,0.00027397,2]
[312436585,1705875039433,-500.0,0.00027397,2]
[312436586,1705875039444,-500.0,0.00027397,2]
[312436588,1705875039453,-500.0,0.00027397,2]
[312436590,1705875039464,-1000.0,0.00027397,2]
[312436592,1705875039474,-740.44,0.00027397,2]
[312436593,1705875039483,-607.21258544,0.00027397,2]
[312436594,1705875039493,-1001.18344881,0.00027397,5]
[312436595,1705875039503,-500.0,0.00027397,2]
[312436596,1705875039515,-500.0,0.00027397,2]
[312436597,1705875039524,-500.0,0.00027397,2]
[312436598,1705875039533,-500.0,0.00027397,2]
[312436599,1705875039542,-500.0,0.00027397,2]
[312436600,1705875039552,-500.0,0.00027397,2]
[312436601,1705875039561,-500.0,0.00027397,2]
[312436602,1705875039574,-500.0,0.00027397,2]
[312436603,1705875039584,-1359.06,0.00027397,2]
[312436604,1705875039596,-491.6713337,0.00027397,2]
[312436605,1705875039607,-500.0,0.00027397,2]
[312436606,1705875039617,-500.0,0.00027397,2]
[312436607,1705875039626,-500.0,0.00027397,2]
[312436608,1705875039635,-500.0,0.00027397,2]
[312436609,1705875039646,-500.0,0.00027397,2]
[312436610,1705875039655,-500.0,0.00027397,2]
[312436611,1705875039664,-500.0,0.00027397,2]
[312436612,1705875039673,-500.0,0.00027397,2]
[312436613,1705875039683,-500.0,0.00027397,2]
[312436614,1705875039692,-500.0,0.00027397,2]
[312436615,1705875039701,-500.0,0.00027397,2]
[312436616,1705875039711,-500.0,0.00027397,2]
[312436617,1705875039720,-500.0,0.00027397,2]
[312436618,1705875039729,-1000.0,0.00027397,2]
[312436619,1705875039738,-500.0,0.00027397,2]
[312436620,1705875039747,-500.0,0.00027397,2]
[312436621,1705875039758,-500.0,0.00027397,2]
[312436622,1705875039767,-500.0,0.00027397,2]
[312436623,1705875039777,-340.35921099,0.00027397,2]
[312436624,1705875039786,-821.56,0.00027397,2]
[312436625,1705875039796,-500.0,0.00027397,2]
[312436626,1705875039805,-500.0,0.00027397,2]
[312436627,1705875039814,-500.0,0.00027397,2]
[312436628,1705875039823,-500.0,0.00027397,2]
[312436629,1705875039833,-500.0,0.00027397,2]
[312436630,1705875039842,-500.0,0.00027397,2]
[312436631,1705875039851,-500.0,0.00027397,2]
[312436632,1705875039860,-500.1,0.00027397,2]
[312436633,1705875039870,-500.0,0.00027397,2]
[312436634,1705875039879,-500.0,0.00027397,2]
[312436635,1705875039888,-500.0,0.00027397,2]
[312436636,1705875039897,-523.61,0.00027397,2]
[312436637,1705875039906,-647.86,0.00027397,2]
[312436638,1705875039915,-500.0,0.00027397,2]
[312436639,1705875039924,-500.0,0.00027397,2]
[312436640,1705875039933,-582.91849206,0.00027397,2]
[312436641,1705875039942,-500.0,0.00027397,2]
[312436642,1705875039951,-1504.25,0.00027397,2]
[312436643,1705875039960,-3411.86,0.00027397,2]
[312436644,1705875039970,-1227.59,0.00027397,2]
[312436645,1705875039979,-500.0,0.00027397,2]
[312436646,1705875039988,-14427.51,0.00027397,2]
[312436647,1705875039997,-500.0,0.00027397,2]
[312436648,1705875040007,-715.42,0.00027397,2]
[312436649,1705875040016,-500.0,0.00027397,2]
[312436651,1705875040034,-500.0,0.00027397,2]
[312436653,1705875040045,-1332.28,0.00027397,2]